bitfinex/quotes_BTCUSD_20241101
["timestamp","ask_amount","ask_price","bid_price","bid_amount"]
[1730445312462,0.144673,69121.0,69120.0,0.00281461]
[1730445312724,0.15811252,69121.0,69120.0,0.00281461]
[1730445314107,0.144673,69121.0,69120.0,0.00281461]
[1730445314325,0.15810782,69121.0,69120.0,0.00281461]
[1730445314846,0.144673,69121.0,69120.0,0.00281461]
[1730445315567,0.144662,69127.0,69122.0,0.144671]
[1730445315793,0.21769576,69128.0,69121.0,0.289346]
[1730445316032,0.146298,69131.0,69125.0,0.15063708]
[1730445316305,0.14466,69128.0,69123.0,0.144668]
[1730445316560,0.001644,69131.0,69130.0,0.144654]
[1730445317525,0.001644,69131.0,69130.0,0.38760925]
[1730445317730,0.001644,69145.0,69144.0,0.15063708]
[1730445317951,0.001644,69145.0,69144.0,0.29526208]
[1730445318626,0.001644,69145.0,69142.0,0.144628]
[1730445319508,0.144626,69144.0,69138.0,0.144637]
[1730445319717,0.001644,69145.0,69140.0,0.144633]
[1730445320141,0.001644,69145.0,69141.0,0.14463]
[1730445321151,0.144626,69144.0,69139.0,0.28309125]
[1730445321401,0.001644,69145.0,69133.0,0.289295]
[1730445321628,0.144626,69144.0,69138.0,0.144637]
[1730445321841,0.144626,69144.0,69135.0,0.21769576]
[1730445322055,0.001644,69145.0,69142.0,0.21769576]
[1730445322278,0.001644,69145.0,69144.0,0.144625]
[1730445323146,0.144628,69143.0,69138.0,0.15063708]
[1730445323352,0.146268,69145.0,69140.0,0.144633]
[1730445323571,0.001644,69145.0,69139.0,0.13845525]
[1730445323983,0.146268,69145.0,69139.0,0.28309025]
[1730445324194,0.144628,69143.0,69139.0,0.13845525]
[1730445324403,0.001644,69145.0,69139.0,0.13845525]
[1730445324598,0.146267,69145.0,69139.0,0.28309025]
[1730445325046,0.144625,69144.0,69139.0,0.28309025]
[1730445325695,0.289254,69144.0,69130.0,0.32753708]
[1730445325915,0.1,69139.0,69119.0,0.000818]
[1730445326150,0.144673,69121.0,69120.0,0.22051037]
[1730445326582,0.144673,69121.0,69120.0,0.00281461]
[1730445327077,0.289318,69128.0,69120.0,0.00281461]
[1730445327277,0.144671,69123.0,69120.0,0.00281461]
[1730445327682,0.289322,69127.0,69120.0,0.00281461]
[1730445327891,0.28933,69125.0,69120.0,0.00281461]
[1730445328094,0.14467,69123.0,69120.0,0.00281461]
[1730445328304,0.1,69139.0,69122.0,0.15063708]
[1730445328511,0.1,69139.0,69120.0,0.00570798]
[1730445328512,0.21769576,69133.0,69128.0,0.15063708]
[1730445328928,0.001642,69131.0,69128.0,0.15063708]
[1730445329153,0.001642,69131.0,69130.0,0.144654]
[1730445329369,0.001642,69131.0,69128.0,0.15063708]
[1730445329810,0.001642,69131.0,69128.0,0.29529508]
[1730445330564,0.001642,69131.0,69128.0,0.15063708]
[1730445330629,0.146295,69131.0,69125.0,0.144663]
[1730445330831,0.146295,69131.0,69126.0,0.13845525]
[1730445331036,0.146295,69131.0,69126.0,0.28311825]
[1730445331249,0.144663,69127.0,69120.0,0.15345169]
[1730445331455,0.144665,69126.0,69121.0,0.35615101]
[1730445331665,0.433977,69128.0,69121.0,0.13845525]
[1730445331940,0.144669,69124.0,69122.0,0.01150335]
[1730445332167,0.144666,69125.0,69122.0,0.01150335]
[1730445332401,0.289314,69129.0,69122.0,0.01150335]
[1730445332635,0.144669,69123.0,69122.0,0.01150335]
[1730445333494,0.144673,69121.0,69120.0,0.00281461]
[1730445333923,0.144673,69121.0,69120.0,0.01444641]
[1730445334742,0.144668,69124.0,69120.0,0.01444641]
[1730445334988,0.289335,69125.0,69120.0,0.01444641]
[1730445335174,0.144673,69121.0,69120.0,0.01444641]
[1730445337328,0.144673,69121.0,69120.0,0.00281461]
[1730445337757,0.289339,69123.0,69120.0,0.00281461]
[1730445337758,0.144661,69127.0,69120.0,0.14748861]
[1730445337964,0.1,69137.0,69123.0,0.144668]
[1730445338258,0.144659,69128.0,69123.0,0.144668]
[1730445338475,0.289314,69129.0,69122.0,0.144671]
[1730445338693,0.001642,69131.0,69124.0,0.01169031]
[1730445338694,0.28931,69130.0,69124.0,0.01169031]
[1730445338900,0.14466,69128.0,69122.0,0.14467]
[1730445339110,0.144662,69127.0,69122.0,0.14467]
[1730445339541,0.144662,69127.0,69123.0,0.01169031]
[1730445339760,0.144667,69124.0,69123.0,0.01169031]
[1730445339985,0.290951,69131.0,69120.0,0.00281461]
[1730445340215,0.28933,69126.0,69123.0,0.01169031]
[1730445340439,0.144672,69122.0,69120.0,0.00281461]
[1730445340893,0.144673,69121.0,69120.0,0.00281461]
[1730445342309,0.433983,69127.0,69120.0,0.00281461]
[1730445342534,0.289314,69129.0,69120.0,0.00281461]
[1730445342763,0.144671,69123.0,69120.0,0.00281461]
[1730445343204,0.144666,69125.0,69120.0,0.00281461]
[1730445343440,0.001642,69131.0,69120.0,0.00281461]
[1730445343660,0.144673,69121.0,69120.0,0.00281461]
[1730445344579,0.001642,69131.0,69122.0,0.144671]
[1730445344861,0.433972,69129.0,69123.0,0.144668]
[1730445345074,0.14466,69128.0,69123.0,0.144668]
[1730445345311,0.144655,69130.0,69124.0,0.289335]
[1730445345521,0.144661,69127.0,69122.0,0.14467]
[1730445345740,0.144661,69127.0,69123.0,0.144669]
[1730445345964,0.144658,69129.0,69122.0,0.13845525]
[1730445346191,0.001642,69131.0,69128.0,0.144659]
[1730445346435,0.001642,69131.0,69124.0,0.289332]
[1730445346626,0.001642,69131.0,69123.0,0.28909233]
[1730445346627,0.001642,69131.0,69130.0,0.144654]
[1730445347480,0.001642,69131.0,69130.0,0.28310925]
[1730445347697,0.001642,69131.0,69130.0,0.36310925]
[1730445347926,0.001642,69131.0,69130.0,0.45340925]
[1730445348164,0.001642,69131.0,69130.0,0.46501778]
[1730445350198,0.001642,69131.0,69130.0,0.48801778]
[1730445350445,0.001642,69131.0,69130.0,0.49301778]
[1730445350660,0.001642,69131.0,69130.0,0.49501778]
[1730445351090,0.001642,69131.0,69130.0,0.49301778]
[1730445351993,0.001642,69131.0,69130.0,0.49501778]
[1730445352644,0.001642,69131.0,69130.0,0.49301778]
[1730445353923,0.001642,69131.0,69130.0,0.46501778]
[1730445354127,0.001642,69131.0,69130.0,0.37471778]
[1730445354339,0.001642,69131.0,69130.0,0.29471778]
[1730445354548,0.001642,69131.0,69130.0,0.29971778]
[1730445356275,0.001642,69131.0,69130.0,0.15006378]
[1730445356493,0.146294,69131.0,69130.0,0.01160853]
[1730445356943,0.144657,69129.0,69125.0,0.000821]
[1730445357391,0.144663,69126.0,69125.0,0.000821]
[1730445361401,0.39672478,69126.0,69125.0,0.000821]
[1730445361617,0.144663,69126.0,69125.0,0.000821]
[1730445363033,0.144663,69126.0,69125.0,0.00890738]
[1730445363245,0.144663,69126.0,69125.0,0.000821]
[1730445363470,0.144663,69126.0,69125.0,0.00890738]
[1730445363711,0.144662,69127.0,69125.0,0.000821]
[1730445363982,0.144662,69127.0,69125.0,0.00890738]
[1730445364200,0.001642,69131.0,69126.0,0.14654163]
[1730445364636,0.001642,69131.0,69127.0,0.00289288]
[1730445364850,0.001642,69131.0,69128.0,0.13845525]
[1730445365339,0.001642,69131.0,69129.0,0.00808638]
[1730445366066,0.144654,69130.0,69129.0,0.00808638]
[1730445366504,0.28931,69130.0,69125.0,0.000821]
[1730445366736,0.144659,69128.0,69125.0,0.000821]
[1730445366955,0.144659,69128.0,69126.0,0.00808638]
[1730445367183,0.144658,69129.0,69125.0,0.000821]
[1730445367609,0.144658,69129.0,69126.0,0.00808638]
[1730445368559,0.001642,69131.0,69126.0,0.00808638]
[1730445368773,0.0799,69129.0,69126.0,0.00808638]
[1730445368981,0.224558,69129.0,69125.0,0.000821]
[1730445369218,0.144658,69129.0,69127.0,0.00808638]
[1730445369444,0.144658,69129.0,69125.0,0.000821]
[1730445369651,0.144658,69129.0,69128.0,0.00808638]
[1730445369863,0.144658,69129.0,69125.0,0.000821]
[1730445370068,0.001642,69131.0,69125.0,0.000821]
[1730445370274,0.144655,69130.0,69126.0,0.00808638]
[1730445370710,0.289317,69129.0,69125.0,0.000821]
[1730445370934,0.144663,69126.0,69125.0,0.000821]
[1730445371146,0.289317,69129.0,69125.0,0.000821]
[1730445371147,0.144661,69127.0,69125.0,0.000821]
[1730445371569,0.289317,69129.0,69125.0,0.000821]
[1730445371782,0.001642,69131.0,69125.0,0.000821]
[1730445372003,0.144659,69128.0,69125.0,0.000821]
[1730445376405,0.144657,69129.0,69125.0,0.000821]
[1730445377073,0.289316,69129.0,69125.0,0.000821]
[1730445377271,0.144663,69126.0,69125.0,0.000821]
[1730445378351,0.144663,69126.0,69125.0,0.00890738]
[1730445378769,0.144663,69126.0,69125.0,0.000821]
[1730445379198,0.144663,69126.0,69125.0,0.00891811]
[1730445379408,0.144663,69126.0,69125.0,0.000821]
[1730445396001,0.001642,69131.0,69125.0,0.000821]
[1730445396229,0.144655,69130.0,69125.0,0.000821]
[1730445396437,0.144657,69129.0,69125.0,0.000821]
[1730445396644,0.144659,69128.0,69125.0,0.000821]
[1730445396850,0.001642,69131.0,69125.0,0.000821]
[1730445397061,0.146295,69131.0,69125.0,0.000821]
[1730445397777,0.001642,69131.0,69125.0,0.22140333]
[1730445398024,0.001642,69131.0,69130.0,0.144654]
[1730445398229,0.001642,69131.0,69130.0,0.38288951]
[1730445398464,0.001642,69131.0,69130.0,0.38000925]
[1730445399791,0.001642,69131.0,69130.0,0.38200925]
[1730445400015,0.001642,69131.0,69130.0,0.38700925]
[1730445400430,0.001642,69131.0,69130.0,0.41000925]
[1730445401055,0.001642,69131.0,69130.0,0.40800925]
[1730445402341,0.001642,69131.0,69130.0,0.31110925]
[1730445404701,0.001642,69131.0,69130.0,0.31310925]
[1730445405067,0.001642,69131.0,69130.0,0.31110925]
[1730445406817,0.001642,69131.0,69130.0,0.3089493]
[1730445407027,0.001642,69131.0,69130.0,0.3159493]
[1730445407248,0.001642,69131.0,69130.0,0.45680289]
[1730445407462,0.001642,69131.0,69130.0,0.4945493]
[1730445408490,0.001642,69131.0,69130.0,0.58109517]
[1730445408948,0.001642,69131.0,69130.0,0.4945493]
[1730445409375,0.001642,69131.0,69130.0,0.58105711]
[1730445409596,0.001642,69131.0,69130.0,0.4945493]
[1730445409770,0.001642,69131.0,69130.0,0.57905488]
[1730445410025,0.001642,69131.0,69130.0,0.72969196]
[1730445410233,0.001642,69131.0,69130.0,0.74318638]
[1730445410639,0.001642,69131.0,69130.0,0.8316876]
[1730445410847,0.001642,69131.0,69130.0,0.83874748]
[1730445411057,0.001644,69145.0,69130.0,0.83874748]
[1730445411058,0.001644,69145.0,69144.0,0.149625]
[1730445411258,0.001644,69145.0,69144.0,0.4696091]
[1730445411466,0.001644,69145.0,69144.0,0.46671733]
[1730445412083,0.001644,69145.0,69144.0,0.56871733]
[1730445414105,0.001644,69145.0,69144.0,0.44371733]
[1730445414243,0.001644,69145.0,69144.0,0.43871733]
[1730445414459,0.001644,69145.0,69144.0,0.28308025]
[1730445414879,0.001644,69145.0,69144.0,0.28808025]
[1730445415996,0.001644,69145.0,69144.0,0.28308025]
[1730445416415,0.001644,69145.0,69144.0,0.13845525]
[1730445417436,0.001544,69145.0,69144.0,0.13845525]
[1730445417856,0.001544,69145.0,69144.0,0.28308025]
[1730445421029,0.002544,69145.0,69144.0,0.28308025]
[1730445421241,0.002544,69145.0,69144.0,0.43371733]
[1730445423368,0.002544,69145.0,69144.0,0.46671733]
[1730445423639,0.002544,69145.0,69144.0,0.46871733]
[1730445423860,0.002544,69145.0,69144.0,0.46671733]
[1730445423861,0.001544,69145.0,69144.0,0.46671733]
[1730445424083,0.001544,69145.0,69144.0,0.46871733]
[1730445424301,0.002544,69145.0,69144.0,0.46871733]
[1730445424769,0.002544,69145.0,69144.0,0.56671733]
[1730445424770,0.001544,69145.0,69144.0,0.56671733]
[1730445424997,0.001544,69145.0,69144.0,0.56871733]
[1730445425704,0.002544,69145.0,69144.0,0.75561111]
[1730445425945,0.002544,69145.0,69144.0,0.75761111]
[1730445426873,0.001644,69148.0,69147.0,0.279619]
[1730445427100,0.001644,69148.0,69147.0,0.59787425]
[1730445428277,0.002644,69148.0,69147.0,0.59787425]
[1730445428506,0.002644,69148.0,69147.0,0.59587425]
[1730445428755,0.001644,69148.0,69147.0,0.41607425]
[1730445429165,0.002644,69148.0,69147.0,0.41607425]
[1730445430246,0.001644,69148.0,69147.0,0.41607425]
[1730445430916,0.002644,69148.0,69147.0,0.41607425]
[1730445431337,0.002644,69148.0,69147.0,0.41107425]
[1730445431553,0.002644,69148.0,69147.0,0.28307425]
[1730445432004,0.001644,69148.0,69147.0,0.28307425]
[1730445432464,0.002644,69148.0,69147.0,0.28307425]
[1730445432891,0.082644,69148.0,69147.0,0.28307425]
[1730445433510,0.081644,69148.0,69147.0,0.13845525]
[1730445433905,0.082644,69148.0,69147.0,0.13845525]
[1730445434327,0.226261,69148.0,69147.0,0.13845525]
[1730445434885,0.227261,69148.0,69147.0,0.13845525]
[1730445435087,0.227261,69148.0,69139.0,0.144634]
[1730445435088,0.144619,69147.0,69139.0,0.144634]
[1730445435294,0.144623,69146.0,69141.0,0.144631]
[1730445435411,0.144623,69146.0,69142.0,0.13845525]
[1730445436847,0.226261,69148.0,69143.0,0.144626]
[1730445437050,0.227261,69148.0,69144.0,0.13845525]
[1730445437462,0.001644,69148.0,69147.0,0.29525608]
[1730445437698,0.001644,69148.0,69147.0,0.43371133]
[1730445437911,0.001544,69148.0,69147.0,0.43371133]
[1730445440316,0.002544,69148.0,69147.0,0.46671133]
[1730445440732,0.001544,69148.0,69147.0,0.46671133]
[1730445441178,0.002544,69148.0,69147.0,0.46671133]
[1730445441604,0.001544,69148.0,69147.0,0.46671133]
[1730445442730,0.001544,69148.0,69147.0,0.28307425]
[1730445443201,0.002544,69148.0,69147.0,0.28307425]
[1730445443664,0.001544,69148.0,69147.0,0.43371133]
[1730445444088,0.002544,69148.0,69147.0,0.46671133]
[1730445445235,0.001544,69148.0,69147.0,0.46171133]
[1730445445481,0.001544,69148.0,69147.0,0.43871133]
[1730445447108,0.002544,69148.0,69147.0,0.43871133]
[1730445447350,0.002544,69148.0,69147.0,0.43953233]
[1730445447825,0.001544,69148.0,69147.0,0.46753233]
[1730445448279,0.002544,69148.0,69147.0,0.46753233]
[1730445448949,0.001544,69148.0,69147.0,0.46753233]
[1730445450437,0.002544,69148.0,69147.0,0.46753233]
[1730445451207,0.001544,69148.0,69147.0,0.46753233]
[1730445451452,0.002544,69148.0,69147.0,0.46753233]
[1730445452571,0.002544,69148.0,69147.0,0.28389525]
[1730445452826,0.080444,69148.0,69147.0,0.28389525]
[1730445453302,0.002544,69148.0,69147.0,0.43453233]
[1730445453519,0.002544,69148.0,69147.0,0.43953233]
[1730445453929,0.002544,69148.0,69147.0,0.46253233]
[1730445454488,0.002544,69148.0,69147.0,0.46753233]
[1730445455349,0.001544,69148.0,69147.0,0.46753233]
[1730445455804,0.002544,69148.0,69147.0,0.46753233]
[1730445457646,0.001544,69148.0,69147.0,0.46753233]
[1730445457975,0.002544,69148.0,69147.0,0.46753233]
[1730445459948,0.002544,69148.0,69147.0,0.51080302]
[1730445460373,0.002544,69148.0,69147.0,0.46753233]
[1730445460937,0.001544,69148.0,69147.0,0.46753233]
[1730445461139,0.001544,69148.0,69147.0,0.51080302]
[1730445461255,0.002544,69148.0,69147.0,0.51080302]
[1730445463146,0.002544,69148.0,69147.0,0.46753233]
[1730445463493,0.002544,69148.0,69147.0,0.46253233]
[1730445463694,0.002544,69148.0,69147.0,0.46753233]
[1730445464975,0.002544,69148.0,69147.0,0.51084919]
[1730445465387,0.002544,69148.0,69147.0,0.46753233]
[1730445466038,0.002544,69148.0,69147.0,0.46253233]
[1730445467965,0.002544,69148.0,69147.0,0.46753233]
[1730445468179,0.002544,69148.0,69147.0,0.53251509]
[1730445471371,0.002544,69148.0,69147.0,0.46953233]
[1730445471644,0.002544,69148.0,69147.0,0.57583383]
[1730445471886,0.002544,69148.0,69147.0,0.46753233]
[1730445472169,0.002544,69148.0,69147.0,0.57583336]
[1730445472638,0.002544,69148.0,69147.0,0.46753233]
[1730445473109,0.001544,69148.0,69147.0,0.46753233]
[1730445473583,0.002544,69148.0,69147.0,0.46753233]
[1730445473987,0.001544,69148.0,69147.0,0.46753233]
[1730445474149,0.002544,69148.0,69147.0,0.46753233]
[1730445474920,0.002544,69148.0,69147.0,0.46953233]
[1730445475431,0.002544,69148.0,69147.0,0.46753233]
[1730445478581,0.002544,69148.0,69147.0,0.57586854]
[1730445480669,0.002544,69148.0,69147.0,0.46753233]
[1730445481071,0.002544,69148.0,69147.0,0.46953233]
[1730445481484,0.002544,69148.0,69147.0,0.46753233]
[1730445483278,0.002544,69148.0,69147.0,0.42527634]
[1730445483470,0.081444,69148.0,69147.0,0.42527634]
[1730445483647,0.081444,69148.0,69147.0,0.37062231]
[1730445483849,0.081444,69148.0,69147.0,0.13927625]
[1730445484249,0.081444,69148.0,69147.0,0.28389525]
[1730445484648,0.080444,69148.0,69147.0,0.28389525]
[1730445485250,0.074444,69148.0,69147.0,0.28389525]
[1730445485955,0.075444,69148.0,69147.0,0.28389525]
[1730445486161,0.076444,69148.0,69147.0,0.28389525]
[1730445486575,0.075444,69148.0,69147.0,0.28389525]
[1730445486980,0.076444,69148.0,69147.0,0.28389525]
[1730445487230,0.075444,69148.0,69147.0,0.28389525]
[1730445487444,0.075444,69148.0,69147.0,0.000821]
[1730445487649,0.41268022,69148.0,69147.0,0.000821]
[1730445487856,0.318561,69148.0,69147.0,0.000821]
[1730445488268,0.33302435,69148.0,69147.0,0.000821]
[1730445489322,0.33402435,69148.0,69147.0,0.000821]
[1730445490139,0.48466143,69148.0,69147.0,0.000821]
[1730445491273,0.47019808,69148.0,69147.0,0.000821]
[1730445491480,0.46919808,69148.0,69147.0,0.000821]
[1730445493480,0.320561,69148.0,69147.0,0.000821]
[1730445494339,0.322203,69148.0,69147.0,0.000821]
[1730445498623,0.322203,69148.0,69130.0,0.000821]
[1730445498624,0.144652,69131.0,69130.0,0.000821]
[1730445498871,0.323352,69131.0,69130.0,0.000821]
[1730445499337,0.1787,69131.0,69130.0,0.000821]
[1730445499592,0.15063708,69143.0,69130.0,0.13927625]
[1730445499593,0.081,69139.0,69130.0,0.13927625]
[1730445499802,0.21769576,69138.0,69134.0,0.15063708]
[1730445500057,0.21769576,69138.0,69130.0,0.000821]
[1730445500058,0.225638,69139.0,69135.0,0.13845525]
[1730445500524,0.225638,69139.0,69130.0,0.000821]
[1730445500525,0.081,69139.0,69130.0,0.000821]
[1730445500756,0.144652,69132.0,69130.0,0.000821]
[1730445500995,0.326052,69131.0,69130.0,0.000821]
[1730445503260,0.328052,69131.0,69130.0,0.000821]
[1730445503471,0.327052,69131.0,69130.0,0.000821]
[1730445503923,0.328052,69131.0,69130.0,0.000821]
[1730445511824,0.328052,69131.0,69130.0,0.000821]
[1730445515367,0.34146579,69131.0,69130.0,0.000821]
[1730445516230,0.328052,69131.0,69130.0,0.000821]
[1730445517310,0.34147395,69131.0,69130.0,0.000821]
[1730445518416,0.328052,69131.0,69130.0,0.000821]
[1730445518821,0.327052,69131.0,69130.0,0.000821]
[1730445519698,0.326052,69131.0,69130.0,0.000821]
[1730445519912,0.327052,69131.0,69130.0,0.000821]
[1730445520127,0.328052,69131.0,69130.0,0.000821]
[1730445521201,0.448145,69131.0,69130.0,0.000821]
[1730445523330,0.328052,69131.0,69130.0,0.000821]
[1730445537427,0.428052,69131.0,69130.0,0.000821]
[1730445545053,0.246652,69131.0,69130.0,0.000821]
[1730445546346,0.28976645,69131.0,69130.0,0.000821]
[1730445549788,0.246652,69131.0,69130.0,0.000821]
[1730445549992,0.33592497,69131.0,69130.0,0.000821]
[1730445550205,0.43072497,69131.0,69130.0,0.000821]
[1730445550870,0.49539665,69131.0,69130.0,0.000821]
[1730445551076,0.59258565,69131.0,69130.0,0.000821]
[1730445551287,0.52791397,69131.0,69130.0,0.000821]
[1730445551939,1.02151767,69131.0,69130.0,0.000821]
[1730445552125,1.07276598,69131.0,69130.0,0.000821]
[1730445552400,1.14791298,69131.0,69130.0,0.000821]
[1730445552622,1.01856962,69131.0,69130.0,0.000821]
[1730445553252,1.15596934,69131.0,69130.0,0.000821]
[1730445554017,1.17796934,69131.0,69130.0,0.000821]
[1730445554219,1.17896934,69131.0,69130.0,0.000821]
[1730445554450,1.17896934,69131.0,69130.0,1e-06]
[1730445554766,1.32329578,69131.0,69130.0,1e-06]
[1730445554997,1.32229448,69131.0,69130.0,1e-06]
[1730445555215,1.32429448,69131.0,69130.0,1e-06]
[1730445555422,1.17975637,69131.0,69130.0,1e-06]
[1730445555634,1.17875637,69131.0,69130.0,1e-06]
[1730445556080,1.18175637,69131.0,69130.0,1e-06]
[1730445556294,1.17875637,69131.0,69130.0,1e-06]
[1730445556508,1.17675637,69131.0,69130.0,1e-06]
[1730445556931,1.19075637,69131.0,69130.0,0.001001]
[1730445557335,1.17675637,69131.0,69130.0,1e-06]
[1730445557573,1.19075637,69131.0,69130.0,0.001001]
[1730445558199,1.20475637,69131.0,69130.0,0.002001]
[1730445558839,0.701063,69126.0,69125.0,0.000821]
[1730445559047,1.24056787,69126.0,69125.0,0.000821]
[1730445559872,1.2403393,69126.0,69125.0,0.000821]
[1730445560285,1.2453393,69126.0,69125.0,0.001821]
[1730445560536,0.82742803,69126.0,69125.0,0.001821]
[1730445560773,0.48215969,69126.0,69125.0,0.001821]
[1730445560973,0.38564003,69126.0,69125.0,0.002821]
[1730445561234,0.342652,69126.0,69125.0,0.002821]
[1730445561651,0.347652,69126.0,69125.0,0.002821]
[1730445561866,0.447652,69126.0,69125.0,0.002821]
[1730445562079,0.5811293,69126.0,69125.0,0.002821]
[1730445562533,0.64038037,69126.0,69125.0,0.002821]
[1730445563416,0.41610307,69126.0,69125.0,0.002821]
[1730445563649,0.41110307,69126.0,69125.0,0.002821]
[1730445566360,0.259663,69126.0,69125.0,0.002821]
[1730445567434,0.252663,69126.0,69125.0,0.001821]
[1730445567702,0.244663,69126.0,69125.0,0.000821]
[1730445568109,0.246663,69126.0,69125.0,0.000821]
[1730445568312,0.247663,69126.0,69125.0,0.000821]
[1730445573044,0.35039881,69126.0,69125.0,0.000821]
[1730445573695,0.43049881,69126.0,69125.0,0.000821]
[1730445575421,0.417763,69126.0,69125.0,0.000821]
[1730445576042,0.65692855,69126.0,69125.0,0.000821]
[1730445576483,0.61394052,69126.0,69125.0,0.000821]
[1730445576716,0.67842299,69126.0,69125.0,0.000821]
[1730445577590,0.61394052,69126.0,69125.0,0.000821]
[1730445578012,0.75241782,69126.0,69125.0,0.000821]
[1730445580229,0.70469555,69126.0,69125.0,0.000821]
[1730445580433,0.71385067,69126.0,69125.0,0.000821]
[1730445581309,0.43191812,69126.0,69125.0,0.000821]
[1730445581523,0.34191812,69126.0,69125.0,0.000821]
[1730445584563,0.78604283,69126.0,69125.0,0.000821]
[1730445584783,0.72153427,69126.0,69125.0,0.000821]
[1730445585458,0.88030073,69126.0,69125.0,0.000821]
[1730445585664,1.01877803,69126.0,69125.0,0.000821]
[1730445586546,1.07300303,69126.0,69125.0,0.000821]
[1730445587249,1.22273814,69126.0,69125.0,0.000821]
[1730445587452,1.11321375,69126.0,69125.0,0.000821]
[1730445587661,1.22273814,69126.0,69125.0,0.000821]
[1730445587875,1.15814248,69126.0,69125.0,0.000821]
[1730445588088,1.14093176,69126.0,69125.0,0.000821]
[1730445588916,1.09220949,69126.0,69125.0,0.000821]
[1730445589133,1.09320949,69126.0,69125.0,0.000821]
[1730445589537,1.09120949,69126.0,69125.0,0.000821]
[1730445589742,1.09020949,69126.0,69125.0,0.000821]
[1730445589948,1.09720949,69126.0,69125.0,0.001821]
[1730445590157,1.09520949,69126.0,69125.0,0.001821]
[1730445590584,1.09720949,69126.0,69125.0,0.001821]
[1730445591148,1.07220949,69126.0,69125.0,0.001821]
[1730445591530,1.08021574,69126.0,69125.0,0.002821]
[1730445591959,1.12993801,69126.0,69125.0,0.002821]
[1730445593221,1.12793801,69126.0,69125.0,0.002821]
[1730445593479,1.25697234,69126.0,69125.0,0.002821]
[1730445595527,1.12793801,69126.0,69125.0,0.002821]
[1730445597479,1.08021574,69126.0,69125.0,0.002821]
[1730445599004,1.08185774,69126.0,69125.0,0.002821]
[1730445600103,1.08385774,69126.0,69125.0,0.002821]
[1730445600750,1.08392569,69126.0,69125.0,0.002821]
[1730445601431,1.13164796,69126.0,69125.0,0.002821]
[1730445602041,1.12964796,69126.0,69125.0,0.002821]
[1730445604215,1.12986769,69126.0,69125.0,0.002821]
[1730445606461,0.94366812,69126.0,69125.0,0.002821]
[1730445606661,0.79781958,69126.0,69125.0,0.002821]
[1730445606998,0.78256311,69126.0,69125.0,0.002821]
[1730445607200,0.67341193,69126.0,69125.0,0.002821]
[1730445607406,0.56563573,69126.0,69125.0,0.002821]
[1730445608026,0.69903782,69126.0,69125.0,0.002821]
[1730445608814,0.79903782,69126.0,69125.0,0.002821]
[1730445609469,0.66563573,69126.0,69125.0,0.002821]
[1730445611297,0.77341193,69126.0,69125.0,0.002821]
[1730445611522,0.66563573,69126.0,69125.0,0.002821]
[1730445611959,0.77341193,69126.0,69125.0,0.002821]
[1730445612819,0.50657534,69126.0,69125.0,0.002821]
[1730445613019,0.77353231,69126.0,69125.0,0.002821]
[1730445613646,0.91200961,69126.0,69125.0,0.002821]
[1730445613844,0.80421626,69126.0,69125.0,0.002821]
[1730445614516,0.60351098,69126.0,69125.0,0.002821]
[1730445614707,0.016642,69126.0,69125.0,0.086021]
[1730445615355,0.016642,69126.0,69125.0,0.176821]
[1730445615560,0.161305,69126.0,69125.0,0.176821]
[1730445615775,0.153305,69126.0,69125.0,0.001821]
[1730445616205,0.154305,69126.0,69125.0,0.001821]
[1730445616425,0.147305,69126.0,69125.0,0.000821]
[1730445619091,0.002642,69126.0,69125.0,0.000821]
[1730445620659,0.002642,69126.0,69125.0,0.45714125]
[1730445621104,0.002642,69126.0,69125.0,0.45914125]
[1730445621542,0.001642,69126.0,69125.0,0.46414125]
[1730445621773,0.001642,69130.0,69129.0,0.154657]
[1730445621999,0.001642,69131.0,69130.0,0.34612244]
[1730445622216,0.001642,69131.0,69130.0,0.65787769]
[1730445622418,0.001642,69147.0,69136.0,0.72321]
[1730445622629,0.21769576,69141.0,69140.0,0.144634]
[1730445622842,0.001642,69147.0,69143.0,0.144626]
[1730445624396,0.001642,69147.0,69141.0,0.29590847]
[1730445624610,0.001642,69147.0,69138.0,0.0906]
[1730445624611,0.289247,69145.0,69138.0,0.0906]
[1730445624843,0.289247,69145.0,69137.0,0.0777]
[1730445624844,0.15127747,69145.0,69137.0,0.0777]
[1730445625065,0.144636,69139.0,69138.0,0.21769576]
[1730445625274,0.144636,69139.0,69137.0,0.0777]
[1730445625275,0.144636,69140.0,69137.0,0.0777]
[1730445625488,0.289267,69141.0,69137.0,0.0777]
[1730445625489,0.144636,69139.0,69137.0,0.0777]
[1730445625702,0.144638,69138.0,69137.0,0.0777]
[1730445625958,0.289247,69145.0,69137.0,0.0777]
[1730445626182,0.290247,69145.0,69137.0,0.222339]
[1730445626390,0.145625,69145.0,69139.0,0.144635]
[1730445626602,0.001,69145.0,69137.0,0.0777]
[1730445626817,0.001,69139.0,69137.0,0.0777]
[1730445627683,0.001,69139.0,69135.0,0.0757]
[1730445627889,0.144631,69142.0,69136.0,0.144641]
[1730445628101,0.144627,69144.0,69137.0,0.144639]
[1730445628308,0.144627,69143.0,69137.0,0.144639]
[1730445628771,0.144624,69145.0,69136.0,0.289284]
[1730445628983,0.144624,69145.0,69135.0,0.0757]
[1730445628984,0.001642,69147.0,69137.0,0.28928]
[1730445629206,0.001642,69147.0,69139.0,0.289272]
[1730445629423,0.001642,69147.0,69143.0,0.144627]
[1730445629645,0.001642,69147.0,69140.0,0.144632]
[1730445629904,0.001642,69147.0,69136.0,0.21769576]
[1730445629905,0.144632,69141.0,69136.0,0.21769576]
[1730445630108,0.144628,69143.0,69137.0,0.144639]
[1730445630318,0.14463,69142.0,69137.0,0.144639]
[1730445630536,0.144626,69144.0,69138.0,0.144636]
[1730445631828,0.145626,69144.0,69138.0,0.144636]
[1730445632046,0.144628,69143.0,69138.0,0.144636]
[1730445632281,0.001,69144.0,69136.0,0.21769576]
[1730445632527,0.001,69144.0,69135.0,0.220343]
[1730445632528,0.144637,69139.0,69135.0,0.0757]
[1730445632742,0.001,69144.0,69135.0,0.0757]